bitfinex/quotes_BTCUSD_20240730
["timestamp","ask_amount","ask_price","bid_price","bid_amount"]
[1722347567095,0.525979,66566.0,66565.0,0.01021768]
[1722347567341,0.525979,66566.0,66550.0,0.08]
[1722347567342,0.751155,66564.0,66563.0,0.01022679]
[1722347567587,0.0753,66566.0,66547.0,0.009295]
[1722347567859,0.300497,66557.0,66549.0,0.300528]
[1722347568109,0.150262,66550.0,66549.0,0.01027622]
[1722347568370,0.751312,66550.0,66549.0,0.01027622]
[1722347568597,0.751312,66550.0,66547.0,0.009295]
[1722347568598,0.751325,66549.0,66547.0,0.009295]
[1722347568867,0.450795,66549.0,66548.0,0.019295]
[1722347569084,0.150263,66550.0,66548.0,0.019295]
[1722347569341,0.150265,66549.0,66548.0,0.01958672]
[1722347569582,0.751325,66549.0,66548.0,0.01958672]
[1722347569809,1.051855,66549.0,66548.0,0.009295]
[1722347570518,1.114855,66549.0,66548.0,0.009295]
[1722347571499,1.114855,66549.0,66548.0,0.013295]
[1722347571974,1.114855,66549.0,66548.0,0.009295]
[1722347572424,1.117855,66549.0,66548.0,0.009295]
[1722347573610,0.817325,66549.0,66548.0,0.009295]
[1722347573911,0.153265,66549.0,66548.0,0.009295]
[1722347574196,0.003,66549.0,66548.0,0.309829]
[1722347574415,0.003,66549.0,66548.0,0.76063]
[1722347574640,0.063,66565.0,66554.0,0.300505]
[1722347574871,0.063,66565.0,66549.0,0.0301]
[1722347575113,0.0015542,66564.0,66562.0,0.150235]
[1722347575330,0.48,66569.0,66551.0,0.07534716]
[1722347575331,0.44599535,66568.0,66551.0,0.07534716]
[1722347575547,0.44599535,66568.0,66549.0,0.0281]
[1722347575548,0.00117148,66568.0,66552.0,0.150257]
[1722347575771,0.00117148,66568.0,66552.0,0.01036174]
[1722347575994,0.150244,66559.0,66555.0,0.150251]
[1722347576135,0.00117148,66558.0,66557.0,0.150247]
[1722347576368,0.00117148,66558.0,66557.0,0.61199305]
[1722347576554,0.00117148,66568.0,66567.0,0.751122]
[1722347576765,0.0777,66581.0,66574.0,0.150208]
[1722347576766,0.00117148,66580.0,66574.0,0.150208]
[1722347576972,0.00117148,66580.0,66575.0,0.150205]
[1722347576973,0.150197,66579.0,66575.0,0.150205]
[1722347577185,0.3004,66578.0,66575.0,0.01023195]
[1722347577472,0.00117148,66577.0,66557.0,0.24884716]
[1722347577858,0.00117148,66577.0,66558.0,0.16407406]
[1722347578052,0.0777,66581.0,66570.0,0.300433]
[1722347578053,0.300402,66578.0,66570.0,0.300433]
[1722347578269,0.00117148,66577.0,66558.0,0.03619337]
[1722347578475,0.150213,66572.0,66571.0,0.01024944]
[1722347578678,0.150215,66572.0,66564.0,0.300461]
[1722347578827,0.00117148,66571.0,66567.0,0.300446]
[1722347579027,0.00117148,66571.0,66565.0,0.16050377]
[1722347579256,0.30041,66576.0,66568.0,0.0102631]
[1722347579257,0.15022,66569.0,66568.0,0.0102631]
[1722347579460,0.15022,66569.0,66565.0,0.150228]
[1722347579662,0.15022,66569.0,66568.0,0.0102631]
[1722347579834,0.15022,66569.0,66565.0,0.150228]
[1722347580034,0.15022,66569.0,66568.0,0.0102631]
[1722347580240,0.00117148,66569.0,66563.0,0.300464]
[1722347580438,0.00117148,66569.0,66568.0,0.4609291]
[1722347580664,0.44444115,66586.0,66577.0,0.150202]
[1722347580665,0.00117148,66578.0,66577.0,0.150202]
[1722347580838,0.00117148,66584.0,66573.0,0.0828]
[1722347581040,0.750998,66578.0,66577.0,0.01020075]
[1722347581244,0.00117148,66584.0,66573.0,0.15021]
[1722347581473,0.00117148,66584.0,66572.0,0.150212]
[1722347581474,0.150204,66576.0,66572.0,0.150212]
[1722347581698,0.00117148,66575.0,66574.0,0.150208]
[1722347581890,0.300389,66581.0,66574.0,0.150208]
[1722347581891,0.150201,66578.0,66574.0,0.150208]
[1722347582092,0.150201,66578.0,66573.0,0.01321896]
[1722347582295,0.30157748,66577.0,66574.0,0.01021441]
[1722347582496,0.150206,66575.0,66573.0,0.003]
[1722347582708,0.00117148,66574.0,66570.0,0.150217]
[1722347582918,0.00117148,66574.0,66568.0,0.300444]
[1722347582919,0.00117148,66574.0,66571.0,0.150215]
[1722347583117,0.15137748,66575.0,66570.0,0.150217]
[1722347583327,0.15137748,66575.0,66574.0,0.52597216]
[1722347583328,0.00117148,66575.0,66574.0,0.52597216]
[1722347583494,0.00117148,66584.0,66569.0,0.330569]
[1722347583692,0.0659,66593.0,66585.0,0.150182]
[1722347583693,0.00117148,66588.0,66585.0,0.150182]
[1722347583901,0.00117148,66595.0,66582.0,0.15019]
[1722347584272,0.00117148,66595.0,66575.0,0.1404]
[1722347584273,0.300349,66589.0,66575.0,0.1404]
[1722347584481,0.00117148,66588.0,66576.0,0.12786865]
[1722347584616,0.15134848,66588.0,66584.0,0.150185]
[1722347584823,0.00117148,66588.0,66587.0,0.450537]
[1722347585069,0.00117148,66588.0,66576.0,0.07534716]
[1722347585070,0.150168,66592.0,66588.0,0.150176]
[1722347585211,0.150168,66592.0,66576.0,0.10547716]
[1722347585212,0.150176,66589.0,66583.0,0.300373]
[1722347585414,0.00117148,66591.0,66583.0,0.150187]
[1722347585657,0.15133248,66595.0,66590.0,0.15017]
[1722347585861,0.15133248,66595.0,66576.0,0.10547716]
[1722347585862,0.00117148,66595.0,66594.0,0.150163]
[1722347586061,0.00117148,66595.0,66592.0,0.150167]
[1722347586260,0.00117148,66595.0,66591.0,0.300337]
[1722347586468,0.00117148,66595.0,66592.0,0.150167]
[1722347586838,0.48,66596.0,66594.0,0.150162]
[1722347587043,0.300292,66602.0,66596.0,0.150158]
[1722347587406,0.0005298,66601.0,66599.0,0.150151]
[1722347587608,0.150146,66602.0,66596.0,0.300318]
[1722347587757,0.150146,66602.0,66597.0,0.150155]
[1722347587963,0.00117148,66601.0,66597.0,0.150155]
[1722347588343,0.00117148,66601.0,66598.0,0.00998886]
[1722347588539,0.00117148,66601.0,66598.0,0.16014286]
[1722347588745,0.150145,66602.0,66598.0,0.16014286]
[1722347589014,0.450456,66599.0,66598.0,0.00998886]
[1722347589199,0.75076,66599.0,66598.0,0.00998886]
[1722347589425,0.150169,66592.0,66588.0,0.150176]
[1722347589677,0.14014716,66606.0,66584.0,0.0639]
[1722347589678,0.150179,66587.0,66584.0,0.0639]
[1722347589899,0.150173,66590.0,66586.0,0.150181]
[1722347590239,0.0648,66606.0,66584.0,0.0639]
[1722347590468,0.300306,66599.0,66589.0,0.150174]
[1722347590678,0.150168,66592.0,66588.0,0.150176]
[1722347590882,0.150165,66593.0,66590.0,0.150172]
[1722347591099,0.00117148,66592.0,66590.0,0.150172]
[1722347591297,0.00117148,66592.0,66591.0,0.45051]
[1722347591521,0.00117148,66606.0,66589.0,0.07534716]
[1722347591723,0.00117148,66606.0,66600.0,0.150148]
[1722347591938,0.00117148,66606.0,66599.0,0.0645]
[1722347592313,0.150134,66607.0,66602.0,0.150144]
[1722347592514,0.150134,66607.0,66599.0,0.0645]
[1722347592515,0.150136,66606.0,66601.0,0.300293]
[1722347592778,0.0607,66612.0,66599.0,0.0645]
[1722347592993,0.0607,66612.0,66583.0,0.00128662]
[1722347592994,0.15734716,66600.0,66583.0,0.00128662]
[1722347593202,0.15734716,66600.0,66582.0,0.1476]
[1722347593203,0.300314,66597.0,66582.0,0.1476]
[1722347593405,0.082,66600.0,66588.0,0.150176]
[1722347593611,0.082,66600.0,66584.0,0.300371]
[1722347593612,0.150168,66592.0,66586.0,0.300363]
[1722347593811,0.082,66600.0,66582.0,0.1476]
[1722347594023,0.15017,66591.0,66582.0,0.1954117]
[1722347594220,0.150168,66592.0,66585.0,0.300365]
[1722347594349,0.15017,66591.0,66585.0,0.300365]
[1722347594553,0.300332,66593.0,66588.0,0.150176]
[1722347594935,0.150186,66585.0,66582.0,0.1476]
[1722347595141,0.0605,66596.0,66581.0,0.150192]
[1722347595359,0.150184,66585.0,66582.0,0.004]
[1722347595524,0.15018,66587.0,66583.0,0.150188]
[1722347595726,0.150178,66588.0,66584.0,0.150185]
[1722347595955,0.300325,66595.0,66577.0,0.0601]
[1722347596160,0.15018,66587.0,66582.0,0.300379]
[1722347596310,0.15018,66587.0,66578.0,0.00140638]
[1722347596311,0.0605,66596.0,66581.0,0.300384]
[1722347596516,0.0605,66596.0,66587.0,0.300355]
[1722347596779,0.150166,66593.0,66589.0,0.150174]
[1722347597001,0.300328,66594.0,66589.0,0.150174]
[1722347597181,0.150168,66592.0,66589.0,0.150174]
[1722347597382,0.150168,66592.0,66588.0,0.156176]
[1722347597611,0.0639,66602.0,66588.0,0.006]
[1722347597612,0.150174,66589.0,66588.0,0.006]
[1722347597782,0.450523,66589.0,66588.0,0.006]
[1722347598009,1.051221,66589.0,66588.0,0.006]
[1722347598361,0.0639,66602.0,66583.0,0.300374]
[1722347598575,0.150173,66590.0,66588.0,0.00997172]
[1722347598771,0.003,66595.0,66588.0,0.150176]
[1722347599026,0.300337,66592.0,66589.0,0.00996717]
[1722347599236,0.150172,66590.0,66589.0,0.00996717]
[1722347599443,0.300332,66593.0,66588.0,0.004]
[1722347599646,0.15017,66592.0,66589.0,0.00996841]
[1722347599850,0.0639,66602.0,66589.0,0.00996841]
[1722347600049,0.301089,66612.0,66590.0,0.14370314]
[1722347600050,0.150153,66599.0,66590.0,0.14370314]
[1722347600224,0.300298,66601.0,66595.0,0.15016]
[1722347600464,0.300304,66600.0,66591.0,0.00995791]
[1722347600675,0.450469,66597.0,66596.0,0.00993515]
[1722347600919,0.48,66604.0,66590.0,0.1407]
[1722347600920,0.48,66604.0,66593.0,0.150165]
[1722347601164,0.48,66604.0,66596.0,0.00993515]
[1722347601564,0.07534716,66603.0,66593.0,0.150165]
[1722347601788,0.150154,66598.0,66597.0,0.0099225]
[1722347602015,0.150152,66599.0,66594.0,0.150162]
[1722347602234,0.150155,66598.0,66597.0,0.00991658]
[1722347602448,0.150155,66598.0,66596.0,0.001]
[1722347602666,0.300302,66600.0,66597.0,0.01129267]
[1722347602667,0.150153,66599.0,66597.0,0.01129267]
[1722347602897,0.300293,66602.0,66597.0,0.00991658]
[1722347603109,0.300293,66602.0,66597.0,0.01691658]
[1722347603316,0.300293,66602.0,66596.0,0.150159]
[1722347603526,0.150151,66600.0,66598.0,0.00991202]
[1722347603737,0.780284,66604.0,66598.0,0.00991202]
[1722347603971,0.780284,66604.0,66596.0,0.007]
[1722347603972,0.48,66620.0,66599.0,0.01901013]
[1722347604206,0.48,66620.0,66599.0,0.0099007]
[1722347604207,0.300259,66609.0,66599.0,0.0099007]
[1722347604429,0.300259,66609.0,66596.0,0.007]
[1722347604430,0.150144,66603.0,66596.0,0.007]
[1722347604627,0.150143,66603.0,66598.0,0.300308]
[1722347604759,0.150146,66602.0,66599.0,0.150151]
[1722347604965,0.150144,66603.0,66600.0,0.150149]
[1722347605181,0.150139,66605.0,66601.0,0.150146]
[1722347605422,0.150139,66605.0,66601.0,0.00989159]
[1722347605423,0.15014,66605.0,66601.0,0.00989159]
[1722347605828,0.15014,66605.0,66601.0,0.16003659]
[1722347606174,0.0617,66614.0,66601.0,0.00989159]
[1722347606377,0.7836,66626.0,66606.0,0.0625]
[1722347606378,0.00619295,66611.0,66606.0,0.0625]
[1722347606617,0.150963,66612.0,66608.0,0.150131]
[1722347606815,0.150963,66612.0,66608.0,0.15013]
[1722347607030,0.00084,66612.0,66609.0,0.00979871]
[1722347607249,0.00084,66612.0,66611.0,0.150125]
[1722347607405,0.00084,66612.0,66611.0,0.450375]
[1722347607610,0.00084,66612.0,66611.0,0.46016461]
[1722347607809,0.00084,66612.0,66611.0,0.76041461]
[1722347608018,0.00084,66612.0,66611.0,0.15991461]
[1722347608440,0.00084,66612.0,66611.0,0.00978961]
[1722347608759,0.00084,66612.0,66611.0,0.750625]
[1722347608991,0.00084,66612.0,66611.0,0.85571228]
[1722347609139,0.00084,66612.0,66611.0,0.77439978]
[1722347609339,0.00084,66612.0,66611.0,0.76039978]
[1722347609552,0.00084,66612.0,66611.0,1.07164978]
[1722347609883,0.00084,66612.0,66611.0,1.06064978]
[1722347610053,0.00084,66612.0,66611.0,1.09077978]
[1722347610260,0.00084,66612.0,66611.0,1.10477978]
[1722347610861,0.00084,66612.0,66611.0,1.55178416]
[1722347611062,0.00084,66612.0,66611.0,1.81997149]
[1722347611828,0.00084,66612.0,66611.0,1.80597149]
[1722347612056,0.00084,66612.0,66611.0,1.80596931]
[1722347612260,0.00084,66612.0,66611.0,1.81996931]
[1722347612848,0.00084,66612.0,66611.0,1.37296493]
[1722347613596,0.00084,66612.0,66611.0,1.24817978]
[1722347614252,0.00084,66612.0,66611.0,1.37296822]
[1722347614634,0.00084,66612.0,66611.0,1.67321822]
[1722347615252,0.00084,66612.0,66611.0,1.67321724]
[1722347615453,0.00084,66612.0,66611.0,1.54842978]
[1722347615637,0.00084,66612.0,66611.0,1.24817978]
[1722347616659,0.00084,66612.0,66611.0,0.91779978]
[1722347617873,0.00084,66612.0,66611.0,0.02377478]
[1722347618069,0.00084,66612.0,66611.0,0.17389978]
[1722347618273,0.00084,66612.0,66611.0,0.47414978]
[1722347618483,0.00084,66612.0,66611.0,0.17389978]
[1722347618696,0.00084,66612.0,66611.0,0.47414978]
[1722347618904,0.00084,66612.0,66611.0,0.17389978]
[1722347619110,0.150963,66612.0,66611.0,0.02377478]
[1722347619315,0.00084,66612.0,66611.0,0.02377478]
[1722347619554,0.00084,66612.0,66611.0,0.47414978]
[1722347619761,0.00084,66612.0,66611.0,0.77439978]
[1722347620112,0.00084,66612.0,66611.0,0.47414978]
[1722347620540,0.00084,66612.0,66611.0,0.17389978]
[1722347620926,0.00084,66612.0,66611.0,0.02377478]
[1722347621122,0.00084,66612.0,66611.0,0.17389978]
[1722347621524,0.00084,66612.0,66611.0,0.77439978]
[1722347621747,0.00084,66612.0,66611.0,0.47414978]
[1722347622507,0.00084,66612.0,66611.0,0.85184186]
[1722347622711,0.00084,66612.0,66611.0,0.77439978]
[1722347624494,0.00084,66612.0,66611.0,0.80452978]
[1722347624729,0.00084,66612.0,66611.0,1.10477978]
[1722347624897,0.00084,66612.0,66611.0,1.36987214]
[1722347625582,0.00084,66612.0,66611.0,1.37142634]
[1722347625803,0.00084,66612.0,66611.0,1.36987214]
[1722347626215,0.00084,66612.0,66611.0,1.52056646]
[1722347627557,0.00084,66612.0,66611.0,1.36987214]
[1722347627957,0.00084,66612.0,66611.0,1.24507978]
[1722347628211,0.00084,66612.0,66611.0,1.36986846]
[1722347628422,0.00084,66612.0,66611.0,0.94482978]
[1722347628636,0.00084,66612.0,66611.0,1.06962317]
[1722347628842,0.00084,66612.0,66611.0,1.36987324]
[1722347629049,0.00084,66612.0,66611.0,0.62907324]
[1722347629258,0.00084,66612.0,66611.0,0.17389978]
[1722347629461,0.150963,66612.0,66611.0,0.02377478]
[1722347629713,0.150963,66612.0,66611.0,0.17389978]
[1722347629714,0.00084,66612.0,66611.0,0.17389978]
[1722347629949,0.00084,66612.0,66611.0,0.77439978]
[1722347630138,0.00084,66612.0,66611.0,0.47414978]
[1722347630413,0.00084,66612.0,66611.0,0.17389978]
[1722347630637,0.00084,66612.0,66611.0,0.47414978]
[1722347631001,0.00084,66612.0,66611.0,0.77439978]
[1722347631380,0.150963,66612.0,66611.0,0.02377478]
[1722347631560,0.150963,66612.0,66611.0,0.014]
[1722347631561,0.451209,66612.0,66611.0,0.014]
[1722347631763,0.896055,66612.0,66611.0,0.014]
[1722347632022,1.20249223,66612.0,66611.0,0.014]
[1722347633031,1.050875,66611.0,66610.0,0.000913]
[1722347633400,1.05706623,66611.0,66610.0,0.000913]
[1722347634823,0.45656623,66611.0,66610.0,0.000913]
[1722347635044,0.00619123,66611.0,66610.0,0.000913]
[1722347635242,0.00619123,66611.0,66610.0,0.451295]
[1722347635441,0.15631623,66611.0,66610.0,0.01065524]
[1722347635879,1.05706623,66611.0,66610.0,0.01065524]
[1722347636112,1.20336623,66611.0,66610.0,0.01065524]
[1722347636334,1.20336623,66611.0,66610.0,0.001913]
[1722347637198,1.20336623,66611.0,66610.0,0.000913]
[1722347637394,0.60286623,66611.0,66610.0,0.000913]
[1722347637631,0.531975,66611.0,66610.0,0.000913]
[1722347638045,0.5381658,66611.0,66610.0,0.000913]
[1722347638476,0.1563158,66611.0,66610.0,0.01065708]
[1722347638688,0.0061908,66611.0,66610.0,0.000913]
[1722347638904,0.0061908,66611.0,66610.0,0.01165708]
[1722347639106,0.0061908,66611.0,66610.0,0.452295]
[1722347639335,0.0061908,66611.0,66610.0,0.01165708]
[1722347639551,0.1563158,66611.0,66610.0,0.01165708]
[1722347639946,0.7568158,66611.0,66610.0,0.01165708]
[1722347640160,1.0570658,66611.0,66610.0,0.01165708]
[1722347640403,1.1980658,66611.0,66610.0,0.01165708]
[1722347640652,1.1980658,66611.0,66610.0,0.001913]
[1722347640883,1.191875,66611.0,66610.0,0.001913]
[1722347641148,1.19806661,66611.0,66610.0,0.001913]
[1722347641418,1.50760316,66611.0,66610.0,0.001913]
[1722347641650,1.91785316,66611.0,66610.0,0.001913]
[1722347641886,1.91785316,66611.0,66610.0,0.000913]
[1722347641887,1.60760316,66611.0,66610.0,0.000913]
[1722347642125,1.60860316,66611.0,66610.0,0.000913]
[1722347642612,1.60760316,66611.0,66610.0,0.000913]
[1722347642848,1.61341074,66611.0,66610.0,0.001913]
[1722347643103,1.61341074,66611.0,66591.0,0.0015542]
[1722347643104,1.189576,66592.0,66591.0,0.0015542]
[1722347643329,1.189576,66592.0,66574.0,0.150207]
[1722347643330,0.300382,66582.0,66574.0,0.150207]
[1722347643581,0.438736,66592.0,66575.0,0.0015542]
[1722347643582,0.150204,66576.0,66575.0,0.0015542]
[1722347643823,0.450612,66576.0,66575.0,0.01145279]
[1722347644048,0.450612,66576.0,66575.0,0.0015542]
[1722347644282,0.450612,66576.0,66575.0,0.00996734]
[1722347644533,0.150211,66573.0,66572.0,0.0015542]
[1722347644774,0.1932,66590.0,66566.0,0.382849]
[1722347644775,0.150203,66577.0,66575.0,0.00996734]
[1722347645003,0.150204,66576.0,66573.0,0.15021]
[1722347645246,0.450619,66575.0,66574.0,0.0015195]
[1722347645465,0.450619,66575.0,66568.0,0.300442]
[1722347645466,0.150208,66574.0,66573.0,0.0015542]
[1722347645694,0.150208,66574.0,66569.0,0.1517732]
[1722347645695,0.150211,66573.0,66569.0,0.1517732]
[1722347645938,0.001,66576.0,66571.0,0.150215]
[1722347646167,0.001,66576.0,66569.0,0.0015542]
[1722347646168,0.063,66589.0,66572.0,0.0015542]
[1722347646361,0.890555,66573.0,66572.0,0.0015542]
[1722347646618,0.890555,66573.0,66565.0,0.000924]
[1722347646619,0.450679,66566.0,66565.0,0.000924]
[1722347646831,0.751132,66566.0,66565.0,0.000924]
[1722347647037,1.051585,66566.0,66565.0,0.000924]
[1722347647249,0.751132,66566.0,66565.0,0.000924]
[1722347647679,0.30044,66569.0,66565.0,0.000924]
[1722347647680,0.150225,66567.0,66565.0,0.000924]
[1722347647887,0.1405,66573.0,66565.0,0.000924]
[1722347647888,0.150215,66571.0,66565.0,0.000924]
[1722347648091,0.150215,66571.0,66567.0,0.150223]
[1722347648301,0.300417,66574.0,66568.0,0.150221]
[1722347648509,0.0766,66580.0,66570.0,0.150216]
[1722347648713,0.006,66573.0,66572.0,0.150213]
[1722347648919,0.150202,66577.0,66572.0,0.150213]
[1722347649131,0.0766,66588.0,66572.0,0.01008795]
[1722347649351,0.1,66589.0,66572.0,0.00708795]
[1722347649352,0.527233,66573.0,66572.0,0.00708795]
[1722347649555,0.827655,66573.0,66572.0,0.00958339]
[1722347649758,0.827655,66573.0,66565.0,0.000924]
[1722347649759,0.450679,66566.0,66565.0,0.000924]
[1722347649962,0.150226,66566.0,66565.0,0.000924]
[1722347650179,0.150223,66568.0,66565.0,0.01053262]
[1722347650401,0.300387,66581.0,66568.0,0.300441]
[1722347650402,0.300386,66581.0,66568.0,0.300441]
[1722347650613,0.300403,66578.0,66566.0,0.00960259]
[1722347650825,0.1416,66582.0,66565.0,0.000924]
[1722347650826,0.150207,66575.0,66571.0,0.150215]
[1722347651037,0.300373,66584.0,66565.0,0.00392823]
[1722347651038,0.0622,66587.0,66573.0,0.0623]
[1722347651253,0.300388,66581.0,66573.0,0.0623]
[1722347651465,0.150212,66573.0,66569.0,0.150219]
[1722347651674,0.001,66573.0,66568.0,0.300443]
[1722347651881,0.001,66573.0,66572.0,0.150213]
[1722347652093,0.0622,66587.0,66570.0,0.00300419]
[1722347652094,0.300383,66582.0,66570.0,0.00300419]
[1722347652313,0.300368,66585.0,66572.0,0.00957526]
[1722347652574,0.0662,66587.0,66577.0,0.300403]
[1722347652783,0.0662,66587.0,66578.0,0.300397]
[1722347652784,0.300363,66586.0,66578.0,0.300397]
[1722347652963,0.150193,66581.0,66578.0,0.00954794]
[1722347653327,0.150193,66581.0,66577.0,0.150201]
[1722347653694,0.002,66585.0,66584.0,0.150186]
[1722347653892,0.002,66585.0,66584.0,0.450558]
[1722347654131,0.002,66585.0,66584.0,0.46010863]
[1722347654688,0.150173,66590.0,66586.0,0.150181]
[1722347654872,0.300335,66593.0,66584.0,0.30992063]
[1722347655074,0.150168,66592.0,66588.0,0.150176]
[1722347655272,0.376799,66601.0,66581.0,0.0783]
[1722347655273,0.150172,66590.0,66586.0,0.150181]
[1722347655482,0.150172,66590.0,66589.0,0.00952238]
[1722347655669,0.07534716,66598.0,66575.0,0.0751]
[1722347655670,0.001,66585.0,66575.0,0.0751]
[1722347655876,0.0823,66587.0,66576.0,0.1517572]
[1722347655877,0.300363,66586.0,66576.0,0.1517572]
[1722347656086,0.0823,66587.0,66576.0,0.01112082]
[1722347656087,0.150202,66577.0,66576.0,0.01112082]
[1722347656325,0.75101,66577.0,66576.0,0.00956662]
[1722347656710,0.065,66585.0,66568.0,0.0015542]
[1722347656711,0.30039,66580.0,66568.0,0.0015542]
[1722347656912,0.065,66585.0,66571.0,0.150214]
[1722347657117,0.1,66586.0,66573.0,0.07534716]
[1722347657313,0.150198,66579.0,66574.0,0.150206]
[1722347657450,0.0823,66587.0,66574.0,0.15978539]
[1722347657451,0.1502,66578.0,66574.0,0.15978539]
[1722347657649,0.0823,66587.0,66574.0,0.00957739]
[1722347657650,0.150206,66575.0,66574.0,0.00957739]
[1722347657869,0.150206,66575.0,66565.0,0.000924]
[1722347657870,0.15022,66569.0,66568.0,0.0015542]
[1722347658051,0.150224,66567.0,66566.0,0.0015542]
[1722347658248,0.751122,66567.0,66566.0,0.0015542]
[1722347658461,0.450673,66567.0,66566.0,0.0015542]
[1722347658684,0.150224,66567.0,66566.0,0.0015542]
[1722347658912,0.0601,66575.0,66567.0,0.150223]
[1722347659084,0.150218,66570.0,66566.0,0.15983983]
[1722347659466,0.300434,66571.0,66567.0,0.00960927]
[1722347659665,0.300426,66572.0,66567.0,0.00960927]
[1722347659879,0.300405,66577.0,66567.0,0.00960927]
[1722347660090,0.150209,66574.0,66570.0,0.150217]
[1722347660300,0.15021,66574.0,66570.0,0.150217]
[1722347660513,0.001,66578.0,66571.0,0.00959106]
[1722347660718,0.300409,66576.0,66571.0,0.00959106]
[1722347660923,0.150207,66575.0,66568.0,0.300444]
[1722347661123,0.150207,66575.0,66572.0,0.0095865]
[1722347661341,0.150207,66575.0,66570.0,0.150216]
[1722347661566,0.150208,66574.0,66573.0,0.00958195]
[1722347661785,0.0804,66579.0,66565.0,0.151152]
[1722347661786,0.150222,66568.0,66565.0,0.151152]
[1722347662000,0.150222,66568.0,66565.0,0.000924]
[1722347662188,0.150222,66568.0,66566.0,0.00961383]
[1722347662404,0.001,66576.0,66566.0,0.00961383]
[1722347662405,0.450673,66567.0,66566.0,0.00961383]
[1722347662630,0.751122,66567.0,66566.0,0.00961383]
[1722347662842,0.751132,66566.0,66565.0,0.000924]
[1722347663052,1.191785,66566.0,66565.0,0.000924]
[1722347663472,1.492238,66566.0,66565.0,0.000924]
[1722347664555,1.191785,66566.0,66565.0,0.000924]
[1722347664759,1.492238,66566.0,66565.0,0.000924]
[1722347664973,1.792691,66566.0,66565.0,0.000924]
[1722347665216,1.90887584,66566.0,66565.0,0.000924]
[1722347665442,1.61542284,66566.0,66565.0,0.001924]
[1722347665611,1.91587584,66566.0,66565.0,0.000924]
[1722347665811,1.60542284,66566.0,66565.0,0.000924]
[1722347666133,1.61842284,66566.0,66565.0,0.000924]
[1722347666395,1.60842284,66566.0,66565.0,0.000924]
[1722347666572,1.902691,66566.0,66565.0,0.000924]
[1722347666910,1.60842241,66566.0,66565.0,0.000924]
[1722347667133,1.92887541,66566.0,66565.0,0.000924]
[1722347667758,1.96494731,66566.0,66565.0,0.000924]
[1722347668487,2.27840031,66566.0,66565.0,0.000924]
[1722347668685,1.96494731,66566.0,66565.0,1e-06]
[1722347668891,1.94187541,66566.0,66565.0,1e-06]
[1722347669311,2.24232841,66566.0,66565.0,1e-06]
[1722347669742,2.24232841,66566.0,66548.0,0.009295]
[1722347669743,1.352385,66549.0,66548.0,0.009295]
[1722347669943,1.694285,66549.0,66548.0,0.009295]
[1722347670227,1.694285,66549.0,66533.0,0.009306]
[1722347670228,1.052093,66534.0,66533.0,0.009306]
[1722347670420,1.4486695,66534.0,66533.0,0.009306]
[1722347670618,1.2480715,66534.0,66533.0,0.009306]
[1722347671370,1.5486695,66534.0,66533.0,0.009306]
[1722347671617,1.2480715,66534.0,66533.0,0.009306]
[1722347672239,1.94163575,66534.0,66533.0,0.009306]
[1722347672444,1.94363575,66534.0,66533.0,0.009306]
[1722347672871,1.89968635,66534.0,66533.0,0.009306]
[1722347673090,1.90968635,66534.0,66533.0,0.009306]
[1722347673297,1.94363575,66534.0,66533.0,0.009306]
[1722347673724,1.93363575,66534.0,66533.0,0.009306]
[1722347673932,1.63303775,66534.0,66533.0,0.009306]
[1722347674146,1.93363575,66534.0,66533.0,0.009306]
[1722347675640,1.94363575,66534.0,66533.0,0.009306]
[1722347675856,0.601268,66526.0,66518.0,0.009306]
[1722347676061,1.373619,66526.0,66518.0,0.009306]
[1722347676264,2.0666225,66526.0,66518.0,0.009306]
[1722347676470,1.8659885,66526.0,66518.0,0.009306]
[1722347678208,1.8799885,66526.0,66518.0,0.009306]
[1722347678624,1.2439545,66526.0,66518.0,0.009306]
[1722347678832,1.2529545,66526.0,66518.0,0.009306]
[1722347679074,1.4470684,66526.0,66518.0,0.009306]
[1722347679297,1.4948545,66526.0,66518.0,0.009306]
[1722347679471,1.7954885,66526.0,66518.0,0.009306]
[1722347679683,1.9734885,66526.0,66518.0,0.009306]
[1722347679917,1.9534885,66526.0,66518.0,0.009306]
[1722347680132,2.7344885,66526.0,66518.0,0.009306]
[1722347680349,2.7344885,66526.0,66525.0,4e-07]
[1722347680350,3.1255125,66526.0,66525.0,4e-07]
[1722347680560,1.683558,66523.0,66518.0,0.009306]
[1722347680968,2.01879346,66523.0,66518.0,0.009306]
[1722347681576,2.31944046,66523.0,66518.0,0.009306]
[1722347681824,2.29944046,66523.0,66518.0,0.009306]
[1722347682466,2.31944046,66523.0,66518.0,0.009306]
[1722347682683,2.33244046,66523.0,66518.0,0.009306]
[1722347683132,2.03179346,66523.0,66518.0,0.009306]
[1722347684329,2.01179346,66523.0,66518.0,0.009306]
[1722347684533,2.03179346,66523.0,66518.0,0.009306]
[1722347685785,2.33244046,66523.0,66518.0,0.009306]
[1722347685991,1.764657,66519.0,66518.0,0.009306]
[1722347686199,2.65834247,66519.0,66518.0,0.009306]
[1722347686402,2.95900747,66519.0,66518.0,0.009306]
[1722347686819,2.93900747,66519.0,66518.0,0.009306]
[1722347687023,2.92900747,66519.0,66518.0,0.009306]
[1722347687216,2.63834247,66519.0,66518.0,0.009306]
[1722347687538,2.65834247,66519.0,66518.0,0.009306]
[1722347687744,2.63834247,66519.0,66518.0,0.009306]
[1722347687960,2.64634247,66519.0,66518.0,0.009306]
[1722347688177,2.63834247,66519.0,66518.0,0.009306]
[1722347688555,2.66123559,66519.0,66518.0,0.009306]
[1722347689339,2.36057059,66519.0,66518.0,0.009306]
[1722347689749,2.66123559,66519.0,66518.0,0.009306]
[1722347689950,2.68123559,66519.0,66518.0,0.009306]
[1722347690762,2.66123559,66519.0,66518.0,0.009306]
[1722347690983,2.68123559,66519.0,66518.0,0.009306]
[1722347691194,2.43933559,66519.0,66518.0,0.009306]
[1722347691401,2.61323559,66519.0,66518.0,0.009306]
[1722347691811,2.62323559,66519.0,66518.0,0.009306]